[Event "Schack-SM 2023: Sverigemastarklassen"]
[Site "Helsingborg Arena, Mellersta Stenbocksgatan 14, Helsingborg, Sweden"]
[Date "2023.07.09"]
[Round "9.5"]
[White "Kucuksari, Kaan"]
[Black "Blomqvist, Erik"]
[Result "1/2-1/2"]
[TimeControl "90 minutes for 40 moves + 30 minutes for the rest of the game + 30 seconds per move from move one."]
[WhiteTitle "IM"]
[BlackTitle "GM"]
[WhiteFideId "6380166"]
[BlackFideId "1709437"]
[WhiteElo "2512"]
[BlackElo "2500"]

1. d4 {[%clk 01:30:58]} {[%emt 00:00:01]} d5 {[%clk 01:30:53]} {[%emt
00:00:07]} 2. c4 {[%clk 01:31:19]} {[%emt 00:00:09]} c6 {[%clk 01:31:16]}
{[%emt 00:00:06]} 3. Nf3 {[%clk 01:31:45]} {[%emt 00:00:05]} Nf6 {[%clk
01:31:40]} {[%emt 00:00:06]} 4. Qc2 {[%clk 01:32:10]} {[%emt 00:00:05]} dxc4
{[%clk 01:31:37]} {[%emt 00:00:33]} 5. e4 {[%clk 01:32:35]} {[%emt 00:00:05]}
b5 {[%clk 01:31:53]} {[%emt 00:00:14]} 6. b3 {[%clk 01:33:00]} {[%emt
00:00:06]} cxb3 {[%clk 01:32:15]} {[%emt 00:00:07]} 7. axb3 {[%clk 01:33:26]}
{[%emt 00:00:04]} e6 {[%clk 01:32:31]} {[%emt 00:00:13]} 8. Bd3 {[%clk
01:33:51]} {[%emt 00:00:05]} a5 {[%clk 01:32:41]} {[%emt 00:00:20]} 9. Nc3
{[%clk 01:34:16]} {[%emt 00:00:06]} Na6 {[%clk 01:32:26]} {[%emt 00:00:43]} 10.
Qe2 {[%clk 01:34:41]} {[%emt 00:00:06]} Bb4 {[%clk 01:32:38]} {[%emt 00:00:18]}
11. Bd2 {[%clk 01:35:02]} {[%emt 00:00:10]} e5 {[%clk 01:32:50]} {[%emt
00:00:17]} 12. Nxe5 {[%clk 01:35:21]} {[%emt 00:00:12]} Qxd4 {[%clk 01:33:10]}
{[%emt 00:00:10]} 13. Nxc6 {[%clk 01:35:36]} {[%emt 00:00:15]} Qxc3 {[%clk
01:33:33]} {[%emt 00:00:07]} 14. Bxc3 {[%clk 01:36:01]} {[%emt 00:00:04]} Bxc3+
{[%clk 01:33:57]} {[%emt 00:00:07]} 15. Kd1 {[%clk 01:36:19]} {[%emt 00:00:12]}
Bxa1 {[%clk 01:34:17]} {[%emt 00:00:10]} 16. Kd2 {[%clk 01:05:35]} {[%emt
00:31:14]} Bb2 {[%clk 01:32:02]} {[%emt 00:02:45]} 17. Bxb5 {[%clk 01:06:01]}
{[%emt 00:00:04]} O-O {[%clk 01:27:04]} {[%emt 00:05:27]} 18. Ne7+ {[%clk
00:58:18]} {[%emt 00:08:14]} Kh8 {[%clk 01:26:38]} {[%emt 00:00:56]} 19. Nxc8
{[%clk 00:48:18]} {[%emt 00:10:30]} Rfxc8 {[%clk 01:24:03]} {[%emt 00:03:05]}
20. Bxa6 {[%clk 00:48:02]} {[%emt 00:00:47]} Nxe4+ {[%clk 01:24:01]} {[%emt
00:00:31]} 21. Qxe4 {[%clk 00:33:22]} {[%emt 00:15:11]} Rxa6 {[%clk 01:24:24]}
{[%emt 00:00:07]} 22. Qb7 {[%clk 00:22:18]} {[%emt 00:11:34]} Rd6+ {[%clk
01:09:26]} {[%emt 00:15:28]} 23. Ke3 {[%clk 00:22:14]} {[%emt 00:00:33]} Re8+
{[%clk 00:59:03]} {[%emt 00:10:53]} 24. Kf3 {[%clk 00:22:32]} {[%emt 00:00:13]}
Rf6+ {[%clk 00:30:17]} {[%emt 00:29:16]} 25. Kg3 {[%clk 00:22:46]} {[%emt
00:00:17]} Rg6+ {[%clk 00:29:16]} {[%emt 00:01:30]} 26. Kf3 {[%clk 00:22:33]}
{[%emt 00:00:43]} Rf6+ {[%clk 00:29:38]} {[%emt 00:00:08]} 27. Kg3 {[%clk
00:23:01]} {[%emt 00:00:02]} Rg6+ {[%clk 00:30:02]} {[%emt 00:00:06]} 28. Kf3
{[%clk 00:23:20]} {[%emt 00:00:12]} Rf6+ {[%clk 00:30:28]} {[%emt 00:00:04]}
1/2-1/2

[Event "Schack-SM 2023: Mastarklassen-elit"]
[Site "Helsingborg Arena, Mellersta Stenbocksgatan 14, Helsingborg, Sweden"]
[Date "2023.07.09"]
[Round "9.4"]
[White "Torngren, Gustav"]
[Black "Olund, Joar"]
[Result "1-0"]
[TimeControl "90 minutes for 40 moves + 30 minutes for the rest of games + 30 seconds per move from move one."]
[WhiteTitle "FM"]
[BlackTitle "FM"]
[WhiteElo "2297"]
[BlackElo "2399"]

1. c4 {[%clk 01:30:57]} {[%emt 00:00:03]} e5 {[%clk 01:22:27]} {[%emt
00:08:33]} 2. g3 {[%clk 01:31:18]} {[%emt 00:00:09]} Nf6 {[%clk 01:20:58]}
{[%emt 00:01:59]} 3. Bg2 {[%clk 01:31:46]} {[%emt 00:00:03]} c6 {[%clk
01:20:43]} {[%emt 00:00:45]} 4. Nf3 {[%clk 01:32:01]} {[%emt 00:00:14]} e4
{[%clk 01:21:07]} {[%emt 00:00:07]} 5. Nd4 {[%clk 01:32:27]} {[%emt 00:00:03]}
Qb6 {[%clk 01:21:32]} {[%emt 00:00:05]} 6. Nb3 {[%clk 01:30:26]} {[%emt
00:02:30]} a5 {[%clk 01:20:59]} {[%emt 00:01:04]} 7. d3 {[%clk 01:30:47]}
{[%emt 00:00:09]} Bb4+ {[%clk 01:13:33]} {[%emt 00:07:57]} 8. Nc3 {[%clk
01:30:49]} {[%emt 00:00:27]} a4 {[%clk 01:13:33]} {[%emt 00:00:31]} 9. Nd2
{[%clk 01:25:00]} {[%emt 00:06:18]} a3 {[%clk 01:00:04]} {[%emt 00:14:00]} 10.
O-O {[%clk 01:20:44]} {[%emt 00:04:45]} e3 {[%clk 00:49:18]} {[%emt 00:11:17]}
11. Nb3 {[%clk 01:11:37]} {[%emt 00:09:37]} exf2+ {[%clk 00:47:24]} {[%emt
00:02:24]} 12. Kh1 {[%clk 01:12:04]} h5 {[%clk 00:42:16]} {[%emt 00:05:38]} 13.
d4 {[%clk 00:40:55]} {[%emt 00:31:40]} h4 {[%clk 00:32:53]} {[%emt 00:09:52]}
14. Rxf2 {[%clk 00:39:46]} {[%emt 00:01:40]} d5 {[%clk 00:27:28]} {[%emt
00:05:54]} 15. Rxf6 {[%clk 00:26:05]} {[%emt 00:14:12]} gxf6 {[%clk 00:27:57]}
16. c5 {[%clk 00:26:29]} {[%emt 00:00:07]} Qa6 {[%clk 00:26:29]} {[%emt
00:01:57]} 17. e4 {[%clk 00:25:13]} {[%emt 00:01:46]} hxg3 {[%clk 00:25:50]}
{[%emt 00:01:09]} 18. exd5 {[%clk 00:24:03]} {[%emt 00:01:40]} axb2 {[%clk
00:19:26]} {[%emt 00:06:55]} 19. Bxb2 {[%clk 00:24:27]} {[%emt 00:00:05]} Bxc3
{[%clk 00:17:14]} {[%emt 00:02:42]} 20. Bxc3 {[%clk 00:24:56]} {[%emt
00:00:02]} Rxh2+ {[%clk 00:17:15]} {[%emt 00:00:28]} 21. Kg1 {[%clk 00:25:25]}
Bh3 {[%clk 00:13:49]} {[%emt 00:03:55]} 22. Bxh3 {[%clk 00:23:19]} {[%emt
00:02:37]} Qe2 {[%clk 00:11:17]} {[%emt 00:03:02]} 23. Qxe2+ {[%clk 00:21:25]}
{[%emt 00:02:24]} Rxe2 {[%clk 00:11:45]} {[%emt 00:00:02]} 24. Na5 {[%clk
00:11:06]} {[%emt 00:10:49]} Re3 {[%clk 00:08:21]} {[%emt 00:03:54]} 25. Bd2
{[%clk 00:09:12]} {[%emt 00:02:23]} Re2 {[%clk 00:08:37]} {[%emt 00:00:14]} 26.
Be1 {[%clk 00:06:52]} {[%emt 00:02:52]} Kf8 {[%clk 00:04:47]} {[%emt 00:04:20]}
27. d6 {[%clk 00:00:46]} {[%emt 00:06:35]} Rb2 {[%clk 00:05:10]} {[%emt
00:00:07]} 28. Nc4 {[%clk 00:00:39]} {[%emt 00:00:37]} Raxa2 {[%clk 00:05:07]}
{[%emt 00:00:34]} 29. Rxa2 {[%emt 00:00:01]} Rxa2 {[%clk 00:05:29]} {[%emt
00:00:07]} 30. Bxg3 {[%clk 00:00:49]} {[%emt 00:00:50]} Ra4 {[%clk 00:05:09]}
{[%emt 00:00:50]} 31. Nb6 {[%clk 00:00:57]} {[%emt 00:00:21]} Ra1+ {[%clk
00:02:20]} {[%emt 00:03:18]} 32. Kf2 {[%clk 00:01:26]} Ra2+ {[%clk 00:02:44]}
{[%emt 00:00:07]} 33. Ke1 {[%clk 00:01:18]} {[%emt 00:00:38]} Ra1+ {[%clk
00:02:40]} {[%emt 00:00:34]} 34. Kd2 {[%clk 00:01:00]} {[%emt 00:00:46]} Ra2+
{[%clk 00:02:42]} {[%emt 00:00:29]} 35. Kc1 {[%clk 00:00:59]} {[%emt 00:00:32]}
Ke8 {[%clk 00:03:00]} {[%emt 00:00:12]} 36. d7+ {[%clk 00:01:03]} {[%emt
00:00:27]} Nxd7 {[%clk 00:03:29]} 37. Bxd7+ {[%emt 00:00:27]} Kd8 {[%clk
00:03:57]} {[%emt 00:00:01]} 38. Bc8 {[%clk 00:00:58]} {[%emt 00:00:38]} 1-0

[ePGN "0.1;DGT LiveChess/2.2.5"]

[Event "Schack-SM 2023: Veteran-SM 50+"]
[Site "Helsingborg Arena, Mellersta Stenbocksgatan 14, Helsingborg, Sweden"]
[Date "2023.07.09"]
[Round "9.1"]
[White "Kirppo, Ronny"]
[Black "Wahlund, Max"]
[Result "1-0"]
[TimeControl "90 minutes for 40 moves + 30 minutes for the rest of games + 30 seconds per move from move one."]
[BlackTitle "CM"]
[WhiteElo "1886"]
[BlackElo "2002"]

1. d4 {[%clk 01:30:55]} {[%emt 00:00:05]} Nf6 {[%clk 01:30:55]} {[%emt
00:00:06]} 2. c4 {[%clk 01:31:20]} {[%emt 00:00:05]} c5 {[%clk 01:31:21]}
{[%emt 00:00:03]} 3. d5 {[%clk 01:31:38]} {[%emt 00:00:12]} Ne4 {[%clk
01:31:46]} 4. f3 {[%clk 01:19:29]} {[%emt 00:12:45]} Qa5+ {[%clk 01:31:41]} 5.
Nd2 {[%clk 01:19:46]} {[%emt 00:00:47]} Nd6 {[%clk 01:31:21]} {[%emt 00:00:51]}
6. e4 {[%clk 01:20:00]} {[%emt 00:00:16]} g6 {[%clk 01:31:34]} {[%emt
00:00:16]} 7. Bd3 {[%clk 01:08:29]} {[%emt 00:12:01]} Bg7 {[%clk 01:32:01]}
{[%emt 00:00:03]} 8. Ne2 {[%clk 01:08:49]} {[%emt 00:00:09]} b5 {[%clk
01:28:56]} {[%emt 00:03:36]} 9. O-O {[%clk 01:05:37]} {[%emt 00:03:43]} Qb6
{[%clk 01:16:44]} {[%emt 00:12:42]} 10. Rb1 {[%clk 00:49:55]} {[%emt 00:16:12]}
bxc4 {[%clk 01:08:49]} {[%emt 00:08:25]} 11. Nxc4 {[%clk 00:46:55]} {[%emt
00:03:30]} Nxc4 12. Bxc4 {[%clk 00:47:22]} Ba6 {[%clk 01:05:51]} {[%emt
00:03:43]} 13. Qc2 {[%clk 00:45:18]} {[%emt 00:02:34]} Bxc4 {[%clk 00:58:01]}
{[%emt 00:08:20]} 14. Qxc4 {[%clk 00:45:39]} {[%emt 00:00:09]} O-O {[%clk
00:58:24]} {[%emt 00:00:07]} 15. Be3 {[%clk 00:41:23]} {[%emt 00:04:46]} Qa6
{[%clk 00:40:49]} {[%emt 00:18:05]} 16. Rfc1 {[%clk 00:38:15]} {[%emt
00:03:38]} d6 {[%clk 00:34:32]} {[%emt 00:06:48]} 17. b4 {[%clk 00:36:56]}
{[%emt 00:01:49]} Qa3 {[%clk 00:32:40]} {[%emt 00:02:22]} 18. Rb3 {[%emt
00:04:56]} Qxa2 {[%clk 00:32:50]} {[%emt 00:00:18]} 19. bxc5 {[%clk 00:32:49]}
{[%emt 00:00:12]} Nd7 {[%clk 00:30:08]} {[%emt 00:03:12]} 20. c6 {[%clk
00:24:12]} {[%emt 00:09:08]} Nb6 {[%clk 00:26:51]} {[%emt 00:03:46]} 21. Qd3
{[%clk 00:21:28]} {[%emt 00:03:13]} e6 {[%clk 00:23:28]} {[%emt 00:03:54]} 22.
dxe6 {[%clk 00:15:16]} {[%emt 00:06:41]} fxe6 {[%clk 00:23:26]} {[%emt
00:00:33]} 23. Nd4 {[%clk 00:15:28]} {[%emt 00:00:18]} Bxd4 {[%clk 00:16:31]}
{[%emt 00:07:26]} 24. Bxd4 {[%clk 00:15:48]} {[%emt 00:00:10]} Qa5 {[%clk
00:16:42]} {[%emt 00:00:18]} 25. Bxb6 {[%clk 00:12:38]} {[%emt 00:03:40]} axb6
{[%clk 00:17:05]} {[%emt 00:00:08]} 26. Qxd6 {[%clk 00:12:56]} {[%emt
00:00:11]} Rfe8 {[%clk 00:13:00]} {[%emt 00:04:35]} 27. c7 {[%clk 00:12:57]}
{[%emt 00:00:29]} b5 {[%clk 00:13:20]} {[%emt 00:00:11]} 28. Rbc3 {[%clk
00:10:06]} {[%emt 00:03:20]} Rac8 {[%clk 00:08:30]} {[%emt 00:05:20]} 29. Ra3
{[%clk 00:09:31]} {[%emt 00:01:05]} Rxc7 {[%clk 00:07:58]} {[%emt 00:01:03]} 30.
Rxa5 {[%clk 00:09:49]} {[%emt 00:00:12]} 1-0

[Event "Schack-SM 2023: Mastarklassen-elit"]
[Site "Helsingborg Arena, Mellersta Stenbocksgatan 14, Helsingborg, Sweden"]
[Date "2023.07.09"]
[Round "9.5"]
[White "Soderstrom, Adrian"]
[Black "Walinder, Lars"]
[Result "1-0"]
[TimeControl "90 minutes for 40 moves + 30 minutes for the rest of games + 30 seconds per move from move one."]
[WhiteTitle "FM"]
[BlackTitle "FM"]
[WhiteElo "2311"]
[BlackElo "2310"]

1. d4 {[%clk 01:30:55]} {[%emt 00:00:04]} Nf6 {[%clk 01:30:36]} {[%emt
00:00:24]} 2. c4 {[%clk 01:31:12]} {[%emt 00:00:13]} e6 {[%clk 01:30:53]}
{[%emt 00:00:13]} 3. Nf3 {[%clk 01:31:28]} {[%emt 00:00:14]} d5 {[%clk
01:30:50]} {[%emt 00:00:32]} 4. Nc3 {[%clk 01:30:29]} {[%emt 00:01:30]} Be7
{[%clk 01:31:06]} {[%emt 00:00:15]} 5. Bg5 {[%clk 01:30:44]} {[%emt 00:00:14]}
Nbd7 {[%clk 01:30:22]} {[%emt 00:01:14]} 6. e3 {[%clk 01:29:46]} {[%emt
00:01:28]} h6 {[%clk 01:30:39]} {[%emt 00:00:12]} 7. Bf4 {[%clk 01:29:22]}
{[%emt 00:00:55]} dxc4 {[%clk 01:28:24]} {[%emt 00:02:46]} 8. Bxc4 {[%clk
01:28:25]} {[%emt 00:01:27]} a6 {[%clk 01:28:39]} {[%emt 00:00:14]} 9. a4
{[%clk 01:23:59]} {[%emt 00:04:56]} O-O {[%clk 01:22:42]} {[%emt 00:06:27]} 10.
g4 {[%clk 01:22:40]} {[%emt 00:01:49]} Nb6 {[%clk 01:21:42]} {[%emt 00:01:30]}
11. Bd3 {[%clk 01:17:21]} {[%emt 00:05:49]} Nbd5 {[%clk 01:17:02]} {[%emt
00:05:10]} 12. Bxh6 {[%clk 01:03:37]} {[%emt 00:14:14]} Nxg4 {[%clk 00:28:01]}
{[%emt 00:49:30]} 13. Bxg7 {[%clk 01:01:23]} {[%emt 00:02:45]} Kxg7 {[%clk
00:27:09]} {[%emt 00:01:22]} 14. Rg1 {[%clk 01:01:30]} {[%emt 00:00:23]} f5
{[%clk 00:27:31]} {[%emt 00:00:08]} 15. Ne5 {[%clk 00:58:04]} {[%emt 00:03:56]}
Rg8 {[%clk 00:18:05]} {[%emt 00:09:56]} 16. h3 {[%clk 00:54:03]} {[%emt
00:04:31]} Bb4 {[%clk 00:15:11]} {[%emt 00:03:24]} 17. Kd2 {[%clk 00:50:00]}
{[%emt 00:04:33]} Kf8 {[%clk 00:13:07]} {[%emt 00:02:34]} 18. hxg4 {[%clk
00:49:55]} {[%emt 00:00:35]} f4 {[%clk 00:13:00]} {[%emt 00:00:37]} 19. Qf3
{[%clk 00:47:33]} {[%emt 00:02:50]} Ke8 {[%clk 00:09:06]} {[%emt 00:04:25]} 20.
g5 {[%clk 00:46:51]} {[%emt 00:01:13]} c5 {[%clk 00:07:29]} {[%emt 00:02:06]}
21. Qh5+ {[%clk 00:46:51]} {[%emt 00:00:31]} Ke7 {[%clk 00:07:56]} {[%emt
00:00:02]} 22. Qh7+ {[%clk 00:47:10]} {[%emt 00:00:12]} 1-0

[Event "Schack-SM 2023: Veteran-SM 50+"]
[Site "Helsingborg Arena, Mellersta Stenbocksgatan 14, Helsingborg, Sweden"]
[Date "2023.07.09"]
[Round "9.2"]
[White "Gamback, Bjorn"]
[Black "Karlsson, Ulf"]
[Result "1-0"]
[TimeControl "90 minutes for 40 moves + 30 minutes for the rest of games + 30 seconds per move from move one."]
[WhiteTitle "CM"]
[WhiteElo "2048"]
[BlackElo "1968"]

1. Nf3 {[%clk 01:23:40]} {[%emt 00:07:19]} c5 {[%clk 01:30:37]} {[%emt
00:00:23]} 2. e4 {[%clk 01:23:43]} {[%emt 00:00:27]} Nc6 {[%clk 01:31:01]}
{[%emt 00:00:07]} 3. c3 {[%clk 01:24:00]} {[%emt 00:00:12]} d5 {[%clk
01:31:22]} {[%emt 00:00:08]} 4. exd5 {[%clk 01:24:13]} {[%emt 00:00:18]} Qxd5
{[%clk 01:31:47]} {[%emt 00:00:06]} 5. d4 {[%clk 01:24:29]} {[%emt 00:00:14]}
Bg4 {[%clk 01:32:09]} {[%emt 00:00:07]} 6. Be2 {[%clk 01:24:54]} {[%emt
00:00:05]} cxd4 {[%clk 01:32:14]} {[%emt 00:00:25]} 7. cxd4 {[%clk 01:25:17]}
{[%emt 00:00:07]} e6 {[%clk 01:32:38]} {[%emt 00:00:06]} 8. h3 {[%clk
01:25:38]} {[%emt 00:00:09]} Bh5 {[%clk 01:23:15]} {[%emt 00:09:54]} 9. Nc3
{[%clk 01:24:26]} {[%emt 00:01:41]} Qd6 {[%clk 01:22:03]} {[%emt 00:01:41]} 10.
Nb5 {[%clk 01:17:52]} {[%emt 00:07:05]} Qd8 {[%clk 01:16:01]} {[%emt 00:06:32]}
11. d5 {[%clk 00:55:28]} {[%emt 00:22:54]} Bb4+ {[%clk 01:12:52]} {[%emt
00:03:39]} 12. Bd2 {[%clk 00:55:23]} {[%emt 00:00:35]} exd5 {[%clk 01:07:50]}
{[%emt 00:05:32]} 13. Bxb4 {[%clk 00:53:29]} {[%emt 00:02:24]} Nxb4 {[%clk
01:08:09]} {[%emt 00:00:11]} 14. a3 {[%clk 00:53:29]} {[%emt 00:00:31]} Nc6
{[%clk 01:07:27]} {[%emt 00:01:11]} 15. Qxd5 {[%clk 00:53:15]} {[%emt
00:00:44]} Qxd5 {[%clk 00:59:44]} {[%emt 00:08:13]} 16. Nc7+ {[%clk 00:53:35]}
{[%emt 00:00:10]} Kf8 {[%clk 00:54:14]} {[%emt 00:06:00]} 17. Nxd5 {[%clk
00:53:56]} {[%emt 00:00:09]} Nge7 {[%clk 00:54:02]} {[%emt 00:00:42]} 18. Nf4
{[%clk 00:44:09]} {[%emt 00:10:17]} Bxf3 {[%clk 00:50:47]} {[%emt 00:03:45]} 19.
Bxf3 {[%clk 00:44:13]} {[%emt 00:00:26]} g6 {[%clk 00:51:10]} {[%emt 00:00:06]}
20. O-O-O {[%clk 00:41:20]} {[%emt 00:03:24]} Rc8 {[%clk 00:46:25]} {[%emt
00:05:14]} 21. Kb1 {[%clk 00:40:22]} {[%emt 00:01:29]} Rc7 {[%clk 00:45:53]}
{[%emt 00:01:02]} 22. Nd5 {[%clk 00:38:15]} {[%emt 00:02:37]} Nxd5 {[%clk
00:42:11]} {[%emt 00:04:12]} 23. Rxd5 {[%clk 00:38:31]} {[%emt 00:00:14]} Re7
{[%clk 00:35:05]} {[%emt 00:07:37]} 24. Rc5 {[%clk 00:26:57]} {[%emt 00:12:04]}
Nd4 {[%clk 00:32:20]} {[%emt 00:03:14]} 25. Bd5 {[%clk 00:24:26]} {[%emt
00:03:00]} Kg7 {[%clk 00:29:15]} {[%emt 00:03:36]} 26. Rc4 {[%clk 00:17:21]}
{[%emt 00:07:36]} Nb5 {[%clk 00:22:40]} {[%emt 00:07:04]} 27. Rb4 {[%clk
00:12:00]} {[%emt 00:05:51]} Nd6 {[%clk 00:22:18]} {[%emt 00:00:51]} 28. Rd1
{[%clk 00:11:18]} {[%emt 00:01:12]} b6 {[%clk 00:20:49]} {[%emt 00:02:00]} 29.
Bf3 {[%clk 00:11:17]} {[%emt 00:00:30]} Nb7 {[%clk 00:19:27]} {[%emt 00:01:52]}
30. Rbd4 {[%clk 00:10:03]} {[%emt 00:01:45]} Rc8 {[%clk 00:18:51]} {[%emt
00:01:06]} 31. b4 {[%clk 00:09:37]} {[%emt 00:00:56]} Rcc7 {[%clk 00:18:11]}
{[%emt 00:01:10]} 32. Kb2 {[%clk 00:09:24]} {[%emt 00:00:43]} f5 {[%clk
00:17:17]} {[%emt 00:01:24]} 33. g4 {[%clk 00:07:12]} {[%emt 00:02:42]} Kf6
{[%clk 00:17:33]} {[%emt 00:00:14]} 34. gxf5 {[%clk 00:07:14]} {[%emt
00:00:28]} gxf5 {[%clk 00:17:00]} {[%emt 00:01:03]} 35. R1d2 {[%clk 00:06:22]}
{[%emt 00:01:22]} Re6 {[%clk 00:14:00]} {[%emt 00:03:30]} 36. Rd7 {[%clk
00:04:49]} {[%emt 00:02:03]} Re7 {[%clk 00:13:22]} {[%emt 00:01:08]} 37. R7d5
{[%clk 00:05:17]} {[%emt 00:00:02]} Re5 {[%clk 00:12:16]} {[%emt 00:01:35]} 38.
Rd7 {[%clk 00:04:26]} {[%emt 00:01:22]} Re7 {[%clk 00:12:36]} {[%emt 00:00:11]}
39. R7d4 {[%clk 00:04:25]} {[%emt 00:00:30]} Re6 {[%clk 00:12:58]} {[%emt
00:00:08]} 40. Kb3 {[%clk 00:03:10]} {[%emt 00:01:44]} Ke5 {[%clk 00:04:24]}
{[%emt 00:09:05]} 41. Rd5+ {[%clk 00:00:42]} {[%emt 00:02:58]} Kf6 {[%clk
00:04:07]} {[%emt 00:00:47]} 42. R5d4 {[%clk 00:00:49]} {[%emt 00:00:23]} Ke5
{[%clk 00:04:23]} {[%emt 00:00:14]} 43. Rd7 {[%clk 00:00:53]} {[%emt 00:00:26]}
Re7 {[%clk 00:04:32]} {[%emt 00:00:21]} 44. Re2+ {[%clk 00:01:09]} {[%emt
00:00:14]} 1-0